[Event "-chT Youth Countries 2019"]
[Site "Wuerzburg"]
[Date "2019.10.02"]
[Round "2.2"]
[White "Knuedel, Torben"]
[Black "Schneider, Jana"]
[Result "1/2-1/2"]
[ECO "C88"]
[WhiteElo "2193"]
[BlackElo "2240"]
[Annotator "NA"]
[PlyCount "111"]
[EventDate "2019.10.02"]
[EventType "team-tourn"]
[EventRounds "7"]
[EventCountry "GER"]
[SourceTitle "playchess.com"]
[Source "ChessBase"]
[SourceQuality "1"]
[WhiteTeam "Niedersachsen"]
[BlackTeam "Bayern 1"]
[TimeControl "40/5400+30:1800+30"]

1. e4 {[%emt 0:00:00]} e5 {[%emt 0:00:00]} 2. Nf3 {[%emt 0:00:07]} Nc6 {[%emt 0:00:00]} 3. Bb5 {[%emt 0:00:00]} a6 {[%emt 0:00:00]} 4. Ba4 {[%emt 0:00:00]} Nf6 {[%emt 0:00:00]} 5. O-O {[%emt 0:00:00]} Be7 {[%emt 0:00:05]} 6. Re1 {[%emt 0:00:00]} b5 {[%emt 0:00:10]} 7. Bb3 {[%emt 0:00:00]} d6 {[%emt 0:00:08]} 8. c3 {[%emt 0:00:00]} Na5 {[%emt 0:00:10]} 9. Bc2 {[%emt 0:00:26]} c5 {[%emt 0:00:08]} 10. h3 {[%emt 0:04:08]} g5 {[%emt 0:00:58]} 11. d4 {[%emt 0:05:51]} g4 {[%emt 0:00:11]} 12. hxg4 {[%emt 0:03:51]} Nxg4 {[%emt 0:00:16]} 13. dxe5 {[%emt 0:04:36]} dxe5 {[%emt 0:00:21]} 14. Qxd8+ {[%emt 0:00:32]} Bxd8 {[%emt 0:00:08]} 15. Nbd2 {[%emt 0:03:05]} h5 {[%emt 0:06:59]} 16. Nf1 {[%emt 0:03:40]} Bb6 {[%emt 0:28:37]} 17. Ne3 {[%emt 0:05:25]} c4 {[%emt 0:08:37]} 18. a4 {[%emt 0:08:54]} Ra7 {[%emt 0:01:24]} 19. axb5 {[%emt 0:04:49]} axb5 {[%emt 0:00:07]} 20. Nh4 {[%emt 0:08:38]} Rg8 {[%emt 0:04:59]} 21. Nxg4 {[%emt 0:05:46]} hxg4 {[%emt 0:04:56]} 22. Be3 {[%emt 0:06:32]} Bxe3 {[%emt 0:00:34]} 23. Rxe3 {[%emt 0:00:17]} f6 {[%emt 0:04:44]} 24. Nf5 {[%emt 0:10:35]} Rh8 {[%emt 0:07:31]} 25. g3 {[%emt 0:00:30]} Rah7 {[%emt 0:04:34]} 26. Nh4 {[%emt 0:00:12]} Nc6 {[%emt 0:00:18]} 27. b3 {[%emt 0:03:11]} Be6 {[%emt 0:06:59]} 28. bxc4 {[%emt 0:01:38]} Bxc4 {[%emt 0:00:40]} 29. Bd3 {[%emt 0:00:20]} Ra7 {[%emt 0:02:06]} 30. Rxa7 {[%emt 0:02:59]} Nxa7 {[%emt 0:00:07]} 31. Nf5 {[%emt 0:01:38]} Kd7 {[%emt 0:04:55]} 32. Re1 {[%emt 0:03:29]} Rd8 {[%emt 0:03:33]} 33. Bxc4 {[%emt 0:03:09]} bxc4 {[%emt 0:00:15]} 34. Rd1+ {[%emt 0:06:00]} Kc7 {[%emt 0:00:20]} 35. Rxd8 {[%emt 0:00:39]} Kxd8 {[%emt 0:00:04]} 36. Ne3 {[%emt 0:00:51]} Nb5 {[%emt 0:01:25]} 37. Nd5 {[%emt 0:01:40]} Kd7 {[%emt 0:02:31]} 38. Nxf6+ {[%emt 0:00:41]} Ke6 {[%emt 0:00:05]} 39. Nxg4 {[%emt 0:00:17]} Nxc3 {[%emt 0:00:22]} 40. Ne3 {[%emt 0:01:59]} Nxe4 {[%emt 0:00:39]} 41. Nxc4 {[%emt 0:30:05]} Ng5 {[%emt 0:33:35]} 42. Kf1 {[%emt 0:00:40]} Kd5 {[%emt 0:01:08]} 43. Nd2 {[%emt 0:00:20]} Ne6 {[%emt 0:00:00]} 44. Ke2 {[%emt 0:00:00]} Nd4+ {[%emt 0:00:00]} 45. Kd3 {[%emt 0:00:00]} Nc6 {[%emt 0:00:00]} 46. Ke3 {[%emt 0:00:00]} Nd4 {[%emt 0:00:00]} 47. Nf1 {[%emt 0:00:00]} Nc2+ {[%emt 0:00:00]} 48. Kd2 {[%emt 0:00:00]} Nb4 {[%emt 0:00:00]} 49. Ne3+ {[%emt 0:00:00]} Ke4 {[%emt 0:00:00]} 50. Ke2 {[%emt 0:00:00]} Kd4 {[%emt 0:00:00]} 51. f3 {[%emt 0:00:00]} Na6 {[%emt 0:00:00]} 52. g4 {[%emt 0:00:00]} Nc5 {[%emt 0:00:00]} 53. g5 {[%emt 0:00:00]} Ne6 {[%emt 0:00:00]} 54. Nf5+ {[%emt 0:00:00]} Kd5 {[%emt 0:00:00]} 55. Ne7+ {[%emt 0:00:00]} Kd6 {[%emt 0:00:00]} 56. Nf5+ {[%emt 0:00:00] normal} 1/2-1/2

[Event "-chT Youth Countries 2019"]
[Site "Wuerzburg"]
[Date "2019.10.02"]
[Round "2.2"]
[White "Nguyen, Alex Dac-Vuong"]
[Black "Schmidek, Emil"]
[Result "1/2-1/2"]
[ECO "C50"]
[WhiteElo "2128"]
[BlackElo "2387"]
[Annotator "NA"]
[PlyCount "94"]
[EventDate "2019.10.02"]
[EventType "team-tourn"]
[EventRounds "7"]
[EventCountry "GER"]
[SourceTitle "playchess.com"]
[Source "ChessBase"]
[SourceQuality "1"]
[WhiteTeam "Sachsen"]
[BlackTeam "Berlin"]
[TimeControl "40/5400+30:1800+30"]

1. e4 {[%emt 0:00:00]} e5 {[%emt 0:00:00]} 2. Nf3 {[%emt 0:00:00]} Nc6 {[%emt 0:00:00]} 3. Bc4 {[%emt 0:00:00]} Nf6 {[%emt 0:00:00]} 4. d3 {[%emt 0:00:00]} Bc5 {[%emt 0:00:00]} 5. c3 {[%emt 0:00:00]} d6 {[%emt 0:00:00]} 6. Bb3 {[%emt 0:00:02]} a6 {[%emt 0:00:00]} 7. O-O {[%emt 0:00:08]} Ba7 {[%emt 0:00:16]} 8. Re1 {[%emt 0:00:31]} h6 {[%emt 0:00:54]} 9. Nbd2 {[%emt 0:00:25]} O-O {[%emt 0:00:09]} 10. h3 {[%emt 0:00:06]} Be6 {[%emt 0:00:47]} 11. Nf1 {[%emt 0:04:21]} Re8 {[%emt 0:00:09]} 12. Be3 {[%emt 0:09:49]} d5 {[%emt 0:13:39]} 13. Bxa7 {[%emt 0:00:41]} Rxa7 {[%emt 0:00:05]} 14. exd5 {[%emt 0:02:39]} Bxd5 {[%emt 0:00:44]} 15. Bxd5 {[%emt 0:00:14]} Nxd5 {[%emt 0:00:42]} 16. Ng3 {[%emt 0:01:04]} Ra8 {[%emt 0:26:44]} 17. d4 {[%emt 0:00:16]} exd4 {[%emt 0:05:16]} 18. Rxe8+ {[%emt 0:00:11]} Qxe8 {[%emt 0:00:02]} 19. Nxd4 {[%emt 0:00:11]} Rd8 {[%emt 0:22:45]} 20. Nxc6 {[%emt 0:02:00]} Qxc6 {[%emt 0:00:19]} 21. Qf3 {[%emt 0:06:49]} Ne7 {[%emt 0:05:41]} 22. Qe2 {[%emt 0:01:23]} Ng6 {[%emt 0:02:25]} 23. Rd1 {[%emt 0:08:08]} Rxd1+ {[%emt 0:01:34]} 24. Qxd1 {[%emt 0:00:05]} Nf4 {[%emt 0:00:09]} 25. Qf1 {[%emt 0:00:13]} Qd5 {[%emt 0:03:03]} 26. Ne2 {[%emt 0:02:19]} Nd3 {[%emt 0:00:38]} 27. b3 {[%emt 0:00:07]} Qg5 {[%emt 0:05:52]} 28. Qd1 {[%emt 0:01:50]} Qf5 {[%emt 0:00:04]} 29. Qf1 {[%emt 0:00:57]} c5 {[%emt 0:05:58]} 30. Ng3 {[%emt 0:02:48]} Qd5 {[%emt 0:01:14]} 31. Qe2 {[%emt 0:05:40]} g6 {[%emt 0:04:37]} 32. Qe3 {[%emt 0:04:07]} Kg7 {[%emt 0:00:48]} 33. c4 {[%emt 0:01:45]} Qd7 {[%emt 0:01:12]} 34. h4 {[%emt 0:06:13]} f5 {[%emt 0:00:43]} 35. Ne2 {[%emt 0:00:16]} Qd6 {[%emt 0:00:28]} 36. Nc3 {[%emt 0:02:44]} Nf4 {[%emt 0:00:32]} 37. g3 {[%emt 0:00:37]} Ne6 {[%emt 0:00:29]} 38. Nd5 {[%emt 0:00:18]} g5 {[%emt 0:00:30]} 39. hxg5 {[%emt 0:05:56]} hxg5 {[%emt 0:00:01]} 40. f4 {[%emt 0:01:25]} g4 {[%emt 0:00:58]} 41. Kf2 {[%emt 0:33:57]} Kf7 {[%emt 0:08:02]} 42. Qe1 {[%emt 0:00:00]} Ng7 {[%emt 0:10:15]} 43. Qa5 {[%emt 0:00:00]} Ne6 {[%emt 0:04:52]} 44. Qe1 {[%emt 0:00:00]} b5 {[%emt 0:05:21]} 45. Qh1 {[%emt 0:00:00]} Ng7 {[%emt 0:00:08]} 46. Qh8 {[%emt 0:00:00]} bxc4 {[%emt 0:03:29]} 47. bxc4 {[%emt 0:00:00]} Qe6 {[%emt 0:01:22] normal} 1/2-1/2

[Event "-chT Youth Countries 2019"]
[Site "Wuerzburg"]
[Date "2019.10.02"]
[Round "2.2"]
[White "Junker, Magnus"]
[Black "Zha, Kevin"]
[Result "1-0"]
[ECO "B06"]
[WhiteElo "2059"]
[BlackElo "1923"]
[Annotator "NA"]
[PlyCount "81"]
[EventDate "2019.10.02"]
[EventType "team-tourn"]
[EventRounds "7"]
[EventCountry "GER"]
[SourceTitle "playchess.com"]
[Source "ChessBase"]
[SourceQuality "1"]
[WhiteTeam "Bayern 2"]
[BlackTeam "Saarland"]
[TimeControl "40/5400+30:1800+30"]

1. e4 {[%emt 0:00:00]} g6 {[%emt 0:00:00]} 2. d4 {[%emt 0:00:00]} Bg7 {[%emt 0:00:00]} 3. Be3 {[%emt 0:00:00]} d6 {[%emt 0:00:00]} 4. Nc3 {[%emt 0:00:00]} a6 {[%emt 0:00:00]} 5. f3 {[%emt 0:01:00]} b5 {[%emt 0:00:08]} 6. a3 {[%emt 0:00:07]} Nd7 {[%emt 0:01:02]} 7. Nge2 {[%emt 0:00:58]} Bb7 {[%emt 0:00:24]} 8. h4 {[%emt 0:03:02]} h5 {[%emt 0:03:50]} 9. Qd2 {[%emt 0:02:18]} c5 {[%emt 0:02:14]} 10. dxc5 {[%emt 0:05:50]} Nxc5 {[%emt 0:00:58]} 11. Nd4 {[%emt 0:02:18]} Nf6 {[%emt 0:02:50]} 12. O-O-O {[%emt 0:03:41]} Rc8 {[%emt 0:04:09]} 13. Kb1 {[%emt 0:02:31]} Nfd7 {[%emt 0:07:35]} 14. b4 {[%emt 0:10:38]} Ne6 {[%emt 0:06:06]} 15. Nxe6 {[%emt 0:00:07]} fxe6 {[%emt 0:00:04]} 16. Bd4 {[%emt 0:01:26]} e5 {[%emt 0:02:46]} 17. Be3 {[%emt 0:01:29]} Qc7 {[%emt 0:03:02]} 18. Na2 {[%emt 0:02:26]} Nb6 {[%emt 0:01:04]} 19. Bxb6 {[%emt 0:03:06]} Qxb6 {[%emt 0:01:04]} 20. Bd3 {[%emt 0:00:14]} Bh6 {[%emt 0:01:05]} 21. Qe1 {[%emt 0:00:17]} O-O {[%emt 0:12:33]} 22. Qg3 {[%emt 0:01:50]} Kh7 {[%emt 0:00:31]} 23. Qh3 {[%emt 0:00:30]} Ra8 {[%emt 0:01:43]} 24. g4 {[%emt 0:00:46]} Bc8 {[%emt 0:00:47]} 25. Qg2 {[%emt 0:04:36]} Be6 {[%emt 0:03:38]} 26. Rhg1 {[%emt 0:03:05]} Rg8 {[%emt 0:05:11]} 27. Nc3 {[%emt 0:08:51]} a5 {[%emt 0:02:00]} 28. Nd5 {[%emt 0:01:42]} Qa7 {[%emt 0:01:33]} 29. Bxb5 {[%emt 0:01:04]} axb4 {[%emt 0:01:07]} 30. a4 {[%emt 0:00:14]} Bd7 {[%emt 0:01:47]} 31. Bxd7 {[%emt 0:02:15]} Qxd7 {[%emt 0:02:08]} 32. Nb6 {[%emt 0:00:06]} Qa7 {[%emt 0:00:56]} 33. Nxa8 {[%emt 0:00:14]} Be3 {[%emt 0:01:30]} 34. gxh5 {[%emt 0:00:25]} Bxg1 {[%emt 0:00:19]} 35. Rxg1 {[%emt 0:00:14]} Qxa8 {[%emt 0:00:30]} 36. hxg6+ {[%emt 0:00:29]} Kg7 {[%emt 0:00:07]} 37. Qg5 {[%emt 0:01:02]} Qa7 {[%emt 0:00:17]} 38. h5 {[%emt 0:00:56]} Rh8 {[%emt 0:00:10]} 39. Rg2 {[%emt 0:01:15]} Rh6 {[%emt 0:03:29]} 40. Qxh6+ {[%emt 0:00:52]} Kxh6 {[%emt 0:00:46]} 41. g7 {[%emt 0:30:04] normal} 1-0

[Event "-chT Youth Countries 2019"]
[Site "Wuerzburg"]
[Date "2019.10.02"]
[Round "2.2"]
[White "Ratay, Meike"]
[Black "Pahl, Theis"]
[Result "1/2-1/2"]
[ECO "C63"]
[WhiteElo "2032"]
[BlackElo "2022"]
[Annotator "NA"]
[PlyCount "71"]
[EventDate "2019.10.02"]
[EventType "team-tourn"]
[EventRounds "7"]
[EventCountry "GER"]
[SourceTitle "playchess.com"]
[Source "ChessBase"]
[SourceQuality "1"]
[WhiteTeam "Thueringen"]
[BlackTeam "SG Bremen / Niedersachsen"]
[TimeControl "40/5400+30:1800+30"]

1. e4 {[%emt 0:00:00]} e5 {[%emt 0:00:00]} 2. Nf3 {[%emt 0:00:00]} Nc6 {[%emt 0:00:00]} 3. Bb5 {[%emt 0:00:00]} f5 {[%emt 0:00:00]} 4. Bxc6 {[%emt 0:17:40]} dxc6 {[%emt 0:00:21]} 5. O-O {[%emt 0:07:14]} fxe4 {[%emt 0:04:44]} 6. Nxe5 {[%emt 0:02:04]} Nf6 {[%emt 0:00:31]} 7. d4 {[%emt 0:06:55]} Be7 {[%emt 0:02:35]} 8. Nc3 {[%emt 0:06:56]} Bf5 {[%emt 0:01:11]} 9. Re1 {[%emt 0:07:15]} h6 {[%emt 0:07:00]} 10. Nxe4 {[%emt 0:06:21]} O-O {[%emt 0:06:46]} 11. Ng3 {[%emt 0:03:09]} Bh7 {[%emt 0:01:12]} 12. c3 {[%emt 0:02:02]} Nd5 {[%emt 0:05:05]} 13. Qg4 {[%emt 0:01:36]} Qc8 {[%emt 0:04:49]} 14. Qxc8 {[%emt 0:04:30]} Raxc8 {[%emt 0:00:55]} 15. Bd2 {[%emt 0:00:54]} Rce8 {[%emt 0:03:07]} 16. a3 {[%emt 0:04:31]} Rf6 {[%emt 0:08:19]} 17. c4 {[%emt 0:04:34]} Nf4 {[%emt 0:04:19]} 18. Ne4 {[%emt 0:04:23]} Rf5 {[%emt 0:02:45]} 19. Bc3 {[%emt 0:02:15]} Bd6 {[%emt 0:02:34]} 20. Ng3 {[%emt 0:08:13]} Rff8 {[%emt 0:02:15]} 21. Nd7 {[%emt 0:01:09]} Rxe1+ {[%emt 0:00:18]} 22. Rxe1 {[%emt 0:00:01]} Rd8 {[%emt 0:00:32]} 23. Ne5 {[%emt 0:01:04]} Nd3 {[%emt 0:01:25]} 24. Nxd3 {[%emt 0:03:19]} Bxd3 {[%emt 0:00:05]} 25. c5 {[%emt 0:00:18]} Bxg3 {[%emt 0:00:10]} 26. hxg3 {[%emt 0:00:24]} Kf7 {[%emt 0:00:22]} 27. Re5 {[%emt 0:02:09]} Re8 {[%emt 0:01:34]} 28. d5 {[%emt 0:03:18]} Rxe5 {[%emt 0:00:30]} 29. Bxe5 {[%emt 0:00:00]} cxd5 {[%emt 0:00:12]} 30. Bxc7 {[%emt 0:00:05]} Ke6 {[%emt 0:00:19]} 31. f4 {[%emt 0:02:02]} g6 {[%emt 0:01:19]} 32. Be5 {[%emt 0:00:17]} h5 {[%emt 0:01:08]} 33. Kf2 {[%emt 0:00:35]} Kd7 {[%emt 0:00:30]} 34. Ke3 {[%emt 0:01:09]} Be4 {[%emt 0:00:17]} 35. Kf2 {[%emt 0:00:27]} Kc6 {[%emt 0:00:46]} 36. Ke3 {[%emt 0:00:35] normal} 1/2-1/2

[Event "-chT Youth Countries 2019"]
[Site "Wuerzburg"]
[Date "2019.10.02"]
[Round "2.2"]
[White "Wu, Leon"]
[Black "Maetzkow, Maximilian Paul"]
[Result "1/2-1/2"]
[ECO "B94"]
[WhiteElo "2009"]
[BlackElo "2287"]
[Annotator "NA"]
[PlyCount "48"]
[EventDate "2019.10.02"]
[EventType "team-tourn"]
[EventRounds "7"]
[EventCountry "GER"]
[SourceTitle "playchess.com"]
[Source "ChessBase"]
[SourceQuality "1"]
[WhiteTeam "Baden 2"]
[BlackTeam "Brandenburg/Berlin"]
[TimeControl "40/5400+30:1800+30"]

1. e4 {[%emt 0:00:00]} c5 {[%emt 0:00:00]} 2. Nf3 {[%emt 0:00:00]} d6 {[%emt 0:00:00]} 3. d4 {[%emt 0:00:00]} cxd4 {[%emt 0:00:00]} 4. Nxd4 {[%emt 0:00:00]} Nf6 {[%emt 0:00:00]} 5. Nc3 {[%emt 0:00:01]} a6 {[%emt 0:00:01]} 6. Bg5 {[%emt 0:00:32]} Nbd7 {[%emt 0:00:06]} 7. Qe2 {[%emt 0:00:47]} e6 {[%emt 0:00:30]} 8. f4 {[%emt 0:01:15]} Qc7 {[%emt 0:00:47]} 9. O-O-O {[%emt 0:02:11]} Be7 {[%emt 0:01:13]} 10. g4 {[%emt 0:00:49]} h6 {[%emt 0:00:12]} 11. Bh4 {[%emt 0:01:33]} g5 {[%emt 0:02:57]} 12. fxg5 {[%emt 0:01:04]} hxg5 {[%emt 0:00:01]} 13. Bxg5 {[%emt 0:01:04]} b5 {[%emt 0:09:33]} 14. Bg2 {[%emt 0:04:58]} b4 {[%emt 0:05:41]} 15. e5 {[%emt 0:34:22]} dxe5 {[%emt 0:05:08]} 16. Bxa8 {[%emt 0:01:52]} bxc3 {[%emt 0:00:48]} 17. Nb3 {[%emt 0:04:21]} Nb6 {[%emt 0:02:07]} 18. Qg2 {[%emt 0:04:40]} Nfd5 {[%emt 0:06:23]} 19. Bxe7 {[%emt 0:03:40]} cxb2+ {[%emt 0:02:12]} 20. Kxb2 {[%emt 0:04:12]} Nc4+ {[%emt 0:04:43]} 21. Ka1 {[%emt 0:03:42]} Nce3 {[%emt 0:02:00]} 22. Qd2 {[%emt 0:01:09]} Nxd1 {[%emt 0:11:23]} 23. Rxd1 {[%emt 0:00:15]} Nxe7 {[%emt 0:03:39]} 24. g5 {[%emt 0:03:33]} Bd7 {[%emt 0:06:31] normal} 1/2-1/2

[Event "-chT Youth Countries 2019"]
[Site "Wuerzburg"]
[Date "2019.10.02"]
[Round "2.3"]
[White "Pallas, Sebastian"]
[Black "Weber, Samuel"]
[Result "0-1"]
[ECO "C45"]
[WhiteElo "2291"]
[BlackElo "2288"]
[Annotator "NA"]
[PlyCount "48"]
[EventDate "2019.10.02"]
[EventType "team-tourn"]
[EventRounds "7"]
[EventCountry "GER"]
[SourceTitle "playchess.com"]
[Source "ChessBase"]
[SourceQuality "1"]
[WhiteTeam "Sachsen-Anhalt"]
[BlackTeam "Hessen"]
[TimeControl "40/5400+30:1800+30"]

1. e4 {[%emt 0:00:00]} e5 {[%emt 0:00:00]} 2. Nf3 {[%emt 0:00:00]} Nc6 {[%emt 0:00:00]} 3. d4 {[%emt 0:00:14]} exd4 {[%emt 0:00:10]} 4. Nxd4 {[%emt 0:00:12]} Nf6 {[%emt 0:00:28]} 5. Nxc6 {[%emt 0:01:24]} bxc6 {[%emt 0:01:57]} 6. e5 {[%emt 0:00:40]} Qe7 {[%emt 0:00:07]} 7. Qe2 {[%emt 0:00:08]} Nd5 {[%emt 0:00:05]} 8. c4 {[%emt 0:00:36]} Ba6 {[%emt 0:00:37]} 9. b3 {[%emt 0:02:00]} g6 {[%emt 0:04:31]} 10. f4 {[%emt 0:08:52]} Bg7 {[%emt 0:01:37]} 11. g3 {[%emt 0:00:12]} f6 {[%emt 0:04:43]} 12. Bb2 {[%emt 0:08:21]} fxe5 {[%emt 0:03:10]} 13. fxe5 {[%emt 0:08:55]} O-O {[%emt 0:00:48]} 14. Nd2 {[%emt 0:00:08]} Nb4 {[%emt 0:01:09]} 15. O-O-O {[%emt 0:04:17]} Nxa2+ {[%emt 0:01:16]} 16. Kb1 {[%emt 0:00:03]} Nb4 {[%emt 0:00:39]} 17. Bg2 {[%emt 0:10:54]} Rae8 {[%emt 0:03:11]} 18. Rhe1 {[%emt 0:01:06]} Qc5 {[%emt 0:01:04]} 19. Nf3 {[%emt 0:06:57]} Qa5 {[%emt 0:07:34]} 20. Bc3 {[%emt 0:00:20]} d5 {[%emt 0:00:03]} 21. Qd2 {[%emt 0:01:08]} Rb8 {[%emt 0:02:53]} 22. cxd5 {[%emt 0:07:43]} Bd3+ {[%emt 0:00:58]} 23. Kc1 {[%emt 0:01:12]} Na2+ {[%emt 0:00:17]} 24. Kb2 {[%emt 0:00:14]} Rxb3+ {[%emt 0:00:10] normal} 0-1

[Event "-chT Youth Countries 2019"]
[Site "Wuerzburg"]
[Date "2019.10.02"]
[Round "2.3"]
[White "Goldbeck, Lars"]
[Black "Stelmaszyk, Nico"]
[Result "1-0"]
[ECO "A57"]
[WhiteElo "2203"]
[BlackElo "2190"]
[Annotator "NA"]
[PlyCount "81"]
[EventDate "2019.10.02"]
[EventType "team-tourn"]
[EventRounds "7"]
[EventCountry "GER"]
[SourceTitle "playchess.com"]
[Source "ChessBase"]
[SourceQuality "1"]
[WhiteTeam "Bayern 1"]
[BlackTeam "Niedersachsen"]
[TimeControl "40/5400+30:1800+30"]

1. d4 {[%emt 0:00:00]} Nf6 {[%emt 0:00:00]} 2. c4 {[%emt 0:00:00]} c5 {[%emt 0:00:00]} 3. d5 {[%emt 0:00:00]} b5 {[%emt 0:00:00]} 4. Nf3 {[%emt 0:01:03]} bxc4 {[%emt 0:00:00]} 5. Nc3 {[%emt 0:00:13]} d6 {[%emt 0:01:22]} 6. e4 {[%emt 0:01:09]} g6 {[%emt 0:01:01]} 7. Bxc4 {[%emt 0:00:28]} Bg7 {[%emt 0:00:06]} 8. O-O {[%emt 0:01:27]} O-O {[%emt 0:00:11]} 9. Bg5 {[%emt 0:04:23]} Ba6 {[%emt 0:08:33]} 10. Bxa6 {[%emt 0:08:31]} Nxa6 {[%emt 0:00:08]} 11. Qe2 {[%emt 0:00:54]} Nc7 {[%emt 0:08:11]} 12. Rad1 {[%emt 0:02:05]} Nd7 {[%emt 0:04:54]} 13. Nd2 {[%emt 0:06:19]} a6 {[%emt 0:07:08]} 14. a4 {[%emt 0:05:26]} Rb8 {[%emt 0:05:50]} 15. Nc4 {[%emt 0:01:45]} Ne5 {[%emt 0:13:13]} 16. Ne3 {[%emt 0:13:49]} h6 {[%emt 0:04:22]} 17. Bh4 {[%emt 0:01:10]} g5 {[%emt 0:00:45]} 18. Bg3 {[%emt 0:00:02]} e6 {[%emt 0:01:13]} 19. Rd2 {[%emt 0:13:33]} f5 {[%emt 0:11:19]} 20. Bxe5 {[%emt 0:03:05]} Bxe5 {[%emt 0:01:29]} 21. dxe6 {[%emt 0:00:35]} fxe4 {[%emt 0:01:37]} 22. Ng4 {[%emt 0:01:34]} Bxc3 {[%emt 0:16:50]} 23. bxc3 {[%emt 0:00:02]} d5 {[%emt 0:00:50]} 24. c4 {[%emt 0:04:34]} Nxe6 {[%emt 0:04:31]} 25. cxd5 {[%emt 0:01:13]} Nd4 {[%emt 0:01:12]} 26. Qxe4 {[%emt 0:00:37]} Qd6 {[%emt 0:00:11]} 27. Ne3 {[%emt 0:06:53]} Rf4 {[%emt 0:01:15]} 28. Nc4 {[%emt 0:07:44]} Rxe4 {[%emt 0:00:33]} 29. Nxd6 {[%emt 0:00:02]} Re5 {[%emt 0:00:14]} 30. f3 {[%emt 0:00:55]} Rxd5 {[%emt 0:01:16]} 31. Ne4 {[%emt 0:00:07]} Kg7 {[%emt 0:03:46]} 32. Kf2 {[%emt 0:04:43]} Rbd8 {[%emt 0:02:10]} 33. Rfd1 {[%emt 0:00:51]} c4 {[%emt 0:01:43]} 34. Rc1 {[%emt 0:05:03]} Rc8 {[%emt 0:00:11]} 35. Rb2 {[%emt 0:01:21]} Ne6 {[%emt 0:00:47]} 36. Rb7+ {[%emt 0:00:38]} Kf8 {[%emt 0:00:32]} 37. Rh7 {[%emt 0:01:15]} Rdd8 {[%emt 0:00:35]} 38. Rxh6 {[%emt 0:01:00]} Kf7 {[%emt 0:00:29]} 39. Rb1 {[%emt 0:02:00]} Rc7 {[%emt 0:00:32]} 40. Rb6 {[%emt 0:00:34]} Nf4 {[%emt 0:00:28]} 41. Rh7+ {[%emt 0:30:54] normal} 1-0

[Event "-chT Youth Countries 2019"]
[Site "Wuerzburg"]
[Date "2019.10.02"]
[Round "2.3"]
[White "Sulayev, Daniel"]
[Black "Dahl, Christoph"]
[Result "1/2-1/2"]
[ECO "A01"]
[WhiteElo "2149"]
[BlackElo "2178"]
[Annotator "NA"]
[PlyCount "112"]
[EventDate "2019.10.02"]
[EventType "team-tourn"]
[EventRounds "7"]
[EventCountry "GER"]
[SourceTitle "playchess.com"]
[Source "ChessBase"]
[SourceQuality "1"]
[WhiteTeam "Berlin"]
[BlackTeam "Sachsen"]
[TimeControl "40/5400+30:1800+30"]

1. b3 {[%emt 0:00:00]} e5 {[%emt 0:00:00]} 2. Bb2 {[%emt 0:01:40]} Nc6 {[%emt 0:00:00]} 3. e3 {[%emt 0:00:19]} Nf6 {[%emt 0:00:43]} 4. Bb5 {[%emt 0:00:24]} d6 {[%emt 0:00:53]} 5. Ne2 {[%emt 0:00:52]} Be7 {[%emt 0:00:52]} 6. d4 {[%emt 0:01:16]} exd4 {[%emt 0:00:36]} 7. Nxd4 {[%emt 0:00:17]} Bd7 {[%emt 0:01:08]} 8. O-O {[%emt 0:02:37]} O-O {[%emt 0:00:52]} 9. Nxc6 {[%emt 0:06:46]} bxc6 {[%emt 0:01:15]} 10. Be2 {[%emt 0:00:21]} d5 {[%emt 0:04:24]} 11. Nd2 {[%emt 0:02:01]} Rb8 {[%emt 0:04:55]} 12. c4 {[%emt 0:03:36]} Be6 {[%emt 0:01:54]} 13. Qc2 {[%emt 0:03:23]} Qd7 {[%emt 0:02:05]} 14. Bd3 {[%emt 0:01:55]} Rfd8 {[%emt 0:08:38]} 15. Nf3 {[%emt 0:07:31]} dxc4 {[%emt 0:00:19]} 16. Bxc4 {[%emt 0:00:14]} Bxc4 {[%emt 0:03:37]} 17. Qxc4 {[%emt 0:01:41]} Qd5 {[%emt 0:01:57]} 18. Rac1 {[%emt 0:01:32]} Rb6 {[%emt 0:06:03]} 19. Qxd5 {[%emt 0:01:27]} Nxd5 {[%emt 0:00:33]} 20. Rfd1 {[%emt 0:02:28]} c5 {[%emt 0:24:47]} 21. e4 {[%emt 0:16:01]} Nb4 {[%emt 0:01:56]} 22. Rxd8+ {[%emt 0:00:09]} Bxd8 {[%emt 0:00:01]} 23. Rxc5 {[%emt 0:01:30]} Nxa2 {[%emt 0:03:06]} 24. Ra5 {[%emt 0:01:00]} Rd6 {[%emt 0:05:39]} 25. h3 {[%emt 0:01:04]} Nc1 {[%emt 0:01:23]} 26. Bxc1 {[%emt 0:02:31]} Rd1+ {[%emt 0:00:07]} 27. Kh2 {[%emt 0:00:17]} Rxc1 {[%emt 0:00:02]} 28. Rxa7 {[%emt 0:00:23]} f6 {[%emt 0:00:35]} 29. Ra8 {[%emt 0:06:49]} Rd1 {[%emt 0:00:13]} 30. e5 {[%emt 0:03:09]} Kf7 {[%emt 0:00:17]} 31. Ra7 {[%emt 0:01:20]} Rc1 {[%emt 0:01:26]} 32. Ra4 {[%emt 0:05:52]} Rc3 {[%emt 0:02:02]} 33. Rc4 {[%emt 0:09:18]} Rxc4 {[%emt 0:04:20]} 34. bxc4 {[%emt 0:00:02]} c5 {[%emt 0:02:28]} 35. Kg3 {[%emt 0:02:50]} Bc7 {[%emt 0:02:22]} 36. Kf4 {[%emt 0:00:29]} Ke6 {[%emt 0:02:28]} 37. Ke4 {[%emt 0:01:37]} f5+ {[%emt 0:01:05]} 38. Kf4 {[%emt 0:00:49]} h6 {[%emt 0:00:58]} 39. h4 {[%emt 0:01:00]} g6 {[%emt 0:01:13]} 40. g3 {[%emt 0:01:48]} Ba5 {[%emt 0:02:55]} 41. g4 {[%emt 0:32:06]} Bc3 {[%emt 0:30:24]} 42. gxf5+ {[%emt 0:06:04]} gxf5 {[%emt 0:00:01]} 43. h5 {[%emt 0:00:26]} Bb2 {[%emt 0:00:31]} 44. Ke3 {[%emt 0:02:37]} Bc1+ {[%emt 0:01:02]} 45. Kd3 {[%emt 0:00:28]} Bf4 {[%emt 0:00:07]} 46. Kc3 {[%emt 0:01:01]} Bxe5+ {[%emt 0:00:20]} 47. Kd3 {[%emt 0:01:52]} Bf6 {[%emt 0:01:30]} 48. Ke3 {[%emt 0:00:33]} Bg5+ {[%emt 0:01:11]} 49. Kd3 {[%emt 0:00:04]} Kf6 {[%emt 0:01:00]} 50. Ng1 {[%emt 0:00:00]} Ke5 {[%emt 0:00:00]} 51. Ne2 {[%emt 0:00:00]} f4 {[%emt 0:00:00]} 52. f3 {[%emt 0:00:00]} Bh4 {[%emt 0:00:00]} 53. Nc3 {[%emt 0:00:00]} Be1 {[%emt 0:00:00]} 54. Ne4 {[%emt 0:00:00]} Bb4 {[%emt 0:00:00]} 55. Nf2 {[%emt 0:00:00]} Kf5 {[%emt 0:00:00]} 56. Ne4 {[%emt 0:00:00]} Ke5 {normal} 1/2-1/2